{"text_format":"1","workbook":"xlsx","n_sheets":3,"sheets":["Beurteilung","Gefährdungsfaktoren","Risikobewertung"],"not_rendered":{"charts":0,"images":1,"macros":1,"external_links":0,"defined_names":1,"comments":0,"pivot_tables":0},"unopened":[],"bounds":{"document_bytes":16777216,"sheet_cells":100000,"rows_first":2000,"rows_last":500,"rows_between":2000,"halvings":0,"cell_chars":16384,"cell_head_chars":4096},"cells_cut":0,"cells_raw":0,"read":"whole","date_system":"1900"}

{"sheet":"Beurteilung","index":0,"n_rows":78,"n_cols":15,"rows_kept":78,"cut":false,"hidden":false,"merged":[[0,0,0,12],[6,8,6,9],[6,11,6,12],[6,13,6,14],[1,0,2,1]]}
["Gefährdungsbeurteilung"]
["[##BEREICH##]",null,null,"Version: ","Beschreibung Arbeitsbereich"]
[null,null,null,"Erstellt von:"]
["Hochschule Bochum",null,null,"Erstellt am:",null,null,null,null,null,"          gering - mittel - hoch"]
["Am Hochschulcampus 1",null,null,"Letzte Änderung von:"]
["44801 Bochum",null,null,"Letzte Änderung am:"]
["Nr.","Art","Gruppe der Gefährdung","Ursache der Gefährdung","Schadensausmaß","Wertung","Eintrittswarscheinlichkeit","Wertung","Risikoniveau",null,"Schutzmaßnahmen","Umsetzung",null,"Bemerkungen"]
[null,null,"siehe Gefährdungsfaktoren",null,{"$f":"IF(F8=\"\",\"#bitte Buchstaben rechts wählen\",INDEX(Risikobewertung!$B$2:$F$2,MATCH(Beurteilung!F8,Risikobewertung!$B$8:$F$8,0)))","v":"#bitte Buchstaben rechts wählen"},null,{"$f":"IF(H8=\"\",\"#Bitte Zahl rechts wählen\",INDEX(Risikobewertung!$A$3:$A$7,MATCH(Beurteilung!H8,Risikobewertung!$G$3:$G$7,0)))","v":"#Bitte Zahl rechts wählen"},null,{"$f":"IF(OR(F8=\"\",H8=\"\"),\"Wertungen eingeben\",INDEX(Risikobewertung!$B$3:$F$7,MATCH(H8,Risikobewertung!$G$3:$G$7,0),MATCH(Beurteilung!F8,Risikobewertung!$B$8:$F$8,0)))","v":"Wertungen eingeben"},{"$f":"IF(OR(F8=\"\",H8=\"\"),\"\",INDEX(Risikobewertung!$G$33:$G$57,MATCH(F8&H8,Risikobewertung!$D$33:$D$57,0)))","v":""},"Technisch/ Organisatorisch/ Personenbezogen","Verantwortlich","bis wann","Bewertungsbegründung","Bemerkungen"]
[null,null,null,null,{"$f":"IF(F9=\"\",\"#bitte Buchstaben rechts wählen\",INDEX(Risikobewertung!$B$2:$F$2,MATCH(Beurteilung!F9,Risikobewertung!$B$8:$F$8,0)))","v":"#bitte Buchstaben rechts wählen"},null,{"$f":"IF(H9=\"\",\"#Bitte Zahl rechts wählen\",INDEX(Risikobewertung!$A$3:$A$7,MATCH(Beurteilung!H9,Risikobewertung!$G$3:$G$7,0)))","v":"#Bitte Zahl rechts wählen"},null,{"$f":"IF(OR(F9=\"\",H9=\"\"),\"Wertungen eingeben\",INDEX(Risikobewertung!$B$3:$F$7,MATCH(H9,Risikobewertung!$G$3:$G$7,0),MATCH(Beurteilung!F9,Risikobewertung!$B$8:$F$8,0)))","v":"Wertungen eingeben"},{"$f":"IF(OR(F9=\"\",H9=\"\"),\"\",INDEX(Risikobewertung!$G$33:$G$57,MATCH(F9&H9,Risikobewertung!$D$33:$D$57,0)))","v":""}]
[null,null,null,null,{"$f":"IF(F10=\"\",\"#bitte Buchstaben rechts wählen\",INDEX(Risikobewertung!$B$2:$F$2,MATCH(Beurteilung!F10,Risikobewertung!$B$8:$F$8,0)))","v":"#bitte Buchstaben rechts wählen"},null,{"$f":"IF(H10=\"\",\"#Bitte Zahl rechts wählen\",INDEX(Risikobewertung!$A$3:$A$7,MATCH(Beurteilung!H10,Risikobewertung!$G$3:$G$7,0)))","v":"#Bitte Zahl rechts wählen"},null,{"$f":"IF(OR(F10=\"\",H10=\"\"),\"Wertungen eingeben\",INDEX(Risikobewertung!$B$3:$F$7,MATCH(H10,Risikobewertung!$G$3:$G$7,0),MATCH(Beurteilung!F10,Risikobewertung!$B$8:$F$8,0)))","v":"Wertungen eingeben"},{"$f":"IF(OR(F10=\"\",H10=\"\"),\"\",INDEX(Risikobewertung!$G$33:$G$57,MATCH(F10&H10,Risikobewertung!$D$33:$D$57,0)))","v":""}]
[null,null,null,null,{"$f":"IF(F11=\"\",\"#bitte Buchstaben rechts wählen\",INDEX(Risikobewertung!$B$2:$F$2,MATCH(Beurteilung!F11,Risikobewertung!$B$8:$F$8,0)))","v":"#bitte Buchstaben rechts wählen"},null,{"$f":"IF(H11=\"\",\"#Bitte Zahl rechts wählen\",INDEX(Risikobewertung!$A$3:$A$7,MATCH(Beurteilung!H11,Risikobewertung!$G$3:$G$7,0)))","v":"#Bitte Zahl rechts wählen"},null,{"$f":"IF(OR(F11=\"\",H11=\"\"),\"Wertungen eingeben\",INDEX(Risikobewertung!$B$3:$F$7,MATCH(H11,Risikobewertung!$G$3:$G$7,0),MATCH(Beurteilung!F11,Risikobewertung!$B$8:$F$8,0)))","v":"Wertungen eingeben"},{"$f":"IF(OR(F11=\"\",H11=\"\"),\"\",INDEX(Risikobewertung!$G$33:$G$57,MATCH(F11&H11,Risikobewertung!$D$33:$D$57,0)))","v":""}]
[null,null,null,null,{"$f":"IF(F12=\"\",\"#bitte Buchstaben rechts wählen\",INDEX(Risikobewertung!$B$2:$F$2,MATCH(Beurteilung!F12,Risikobewertung!$B$8:$F$8,0)))","v":"#bitte Buchstaben rechts wählen"},null,{"$f":"IF(H12=\"\",\"#Bitte Zahl rechts wählen\",INDEX(Risikobewertung!$A$3:$A$7,MATCH(Beurteilung!H12,Risikobewertung!$G$3:$G$7,0)))","v":"#Bitte Zahl rechts wählen"},null,{"$f":"IF(OR(F12=\"\",H12=\"\"),\"Wertungen eingeben\",INDEX(Risikobewertung!$B$3:$F$7,MATCH(H12,Risikobewertung!$G$3:$G$7,0),MATCH(Beurteilung!F12,Risikobewertung!$B$8:$F$8,0)))","v":"Wertungen eingeben"},{"$f":"IF(OR(F12=\"\",H12=\"\"),\"\",INDEX(Risikobewertung!$G$33:$G$57,MATCH(F12&H12,Risikobewertung!$D$33:$D$57,0)))","v":""}]
[null,null,null,null,{"$f":"IF(F13=\"\",\"#bitte Buchstaben rechts wählen\",INDEX(Risikobewertung!$B$2:$F$2,MATCH(Beurteilung!F13,Risikobewertung!$B$8:$F$8,0)))","v":"#bitte Buchstaben rechts wählen"},null,{"$f":"IF(H13=\"\",\"#Bitte Zahl rechts wählen\",INDEX(Risikobewertung!$A$3:$A$7,MATCH(Beurteilung!H13,Risikobewertung!$G$3:$G$7,0)))","v":"#Bitte Zahl rechts wählen"},null,{"$f":"IF(OR(F13=\"\",H13=\"\"),\"Wertungen eingeben\",INDEX(Risikobewertung!$B$3:$F$7,MATCH(H13,Risikobewertung!$G$3:$G$7,0),MATCH(Beurteilung!F13,Risikobewertung!$B$8:$F$8,0)))","v":"Wertungen eingeben"},{"$f":"IF(OR(F13=\"\",H13=\"\"),\"\",INDEX(Risikobewertung!$G$33:$G$57,MATCH(F13&H13,Risikobewertung!$D$33:$D$57,0)))","v":""}]
[null,null,null,null,{"$f":"IF(F14=\"\",\"#bitte Buchstaben rechts wählen\",INDEX(Risikobewertung!$B$2:$F$2,MATCH(Beurteilung!F14,Risikobewertung!$B$8:$F$8,0)))","v":"#bitte Buchstaben rechts wählen"},null,{"$f":"IF(H14=\"\",\"#Bitte Zahl rechts wählen\",INDEX(Risikobewertung!$A$3:$A$7,MATCH(Beurteilung!H14,Risikobewertung!$G$3:$G$7,0)))","v":"#Bitte Zahl rechts wählen"},null,{"$f":"IF(OR(F14=\"\",H14=\"\"),\"Wertungen eingeben\",INDEX(Risikobewertung!$B$3:$F$7,MATCH(H14,Risikobewertung!$G$3:$G$7,0),MATCH(Beurteilung!F14,Risikobewertung!$B$8:$F$8,0)))","v":"Wertungen eingeben"},{"$f":"IF(OR(F14=\"\",H14=\"\"),\"\",INDEX(Risikobewertung!$G$33:$G$57,MATCH(F14&H14,Risikobewertung!$D$33:$D$57,0)))","v":""}]
[null,null,null,null,{"$f":"IF(F15=\"\",\"#bitte Buchstaben rechts wählen\",INDEX(Risikobewertung!$B$2:$F$2,MATCH(Beurteilung!F15,Risikobewertung!$B$8:$F$8,0)))","v":"#bitte Buchstaben rechts wählen"},null,{"$f":"IF(H15=\"\",\"#Bitte Zahl rechts wählen\",INDEX(Risikobewertung!$A$3:$A$7,MATCH(Beurteilung!H15,Risikobewertung!$G$3:$G$7,0)))","v":"#Bitte Zahl rechts wählen"},null,{"$f":"IF(OR(F15=\"\",H15=\"\"),\"Wertungen eingeben\",INDEX(Risikobewertung!$B$3:$F$7,MATCH(H15,Risikobewertung!$G$3:$G$7,0),MATCH(Beurteilung!F15,Risikobewertung!$B$8:$F$8,0)))","v":"Wertungen eingeben"},{"$f":"IF(OR(F15=\"\",H15=\"\"),\"\",INDEX(Risikobewertung!$G$33:$G$57,MATCH(F15&H15,Risikobewertung!$D$33:$D$57,0)))","v":""}]
[null,null,null,null,{"$f":"IF(F16=\"\",\"#bitte Buchstaben rechts wählen\",INDEX(Risikobewertung!$B$2:$F$2,MATCH(Beurteilung!F16,Risikobewertung!$B$8:$F$8,0)))","v":"#bitte Buchstaben rechts wählen"},null,{"$f":"IF(H16=\"\",\"#Bitte Zahl rechts wählen\",INDEX(Risikobewertung!$A$3:$A$7,MATCH(Beurteilung!H16,Risikobewertung!$G$3:$G$7,0)))","v":"#Bitte Zahl rechts wählen"},null,{"$f":"IF(OR(F16=\"\",H16=\"\"),\"Wertungen eingeben\",INDEX(Risikobewertung!$B$3:$F$7,MATCH(H16,Risikobewertung!$G$3:$G$7,0),MATCH(Beurteilung!F16,Risikobewertung!$B$8:$F$8,0)))","v":"Wertungen eingeben"},{"$f":"IF(OR(F16=\"\",H16=\"\"),\"\",INDEX(Risikobewertung!$G$33:$G$57,MATCH(F16&H16,Risikobewertung!$D$33:$D$57,0)))","v":""}]
[null,null,null,null,{"$f":"IF(F17=\"\",\"#bitte Buchstaben rechts wählen\",INDEX(Risikobewertung!$B$2:$F$2,MATCH(Beurteilung!F17,Risikobewertung!$B$8:$F$8,0)))","v":"#bitte Buchstaben rechts wählen"},null,{"$f":"IF(H17=\"\",\"#Bitte Zahl rechts wählen\",INDEX(Risikobewertung!$A$3:$A$7,MATCH(Beurteilung!H17,Risikobewertung!$G$3:$G$7,0)))","v":"#Bitte Zahl rechts wählen"},null,{"$f":"IF(OR(F17=\"\",H17=\"\"),\"Wertungen eingeben\",INDEX(Risikobewertung!$B$3:$F$7,MATCH(H17,Risikobewertung!$G$3:$G$7,0),MATCH(Beurteilung!F17,Risikobewertung!$B$8:$F$8,0)))","v":"Wertungen eingeben"},{"$f":"IF(OR(F17=\"\",H17=\"\"),\"\",INDEX(Risikobewertung!$G$33:$G$57,MATCH(F17&H17,Risikobewertung!$D$33:$D$57,0)))","v":""}]
[null,null,null,null,{"$f":"IF(F18=\"\",\"#bitte Buchstaben rechts wählen\",INDEX(Risikobewertung!$B$2:$F$2,MATCH(Beurteilung!F18,Risikobewertung!$B$8:$F$8,0)))","v":"#bitte Buchstaben rechts wählen"},null,{"$f":"IF(H18=\"\",\"#Bitte Zahl rechts wählen\",INDEX(Risikobewertung!$A$3:$A$7,MATCH(Beurteilung!H18,Risikobewertung!$G$3:$G$7,0)))","v":"#Bitte Zahl rechts wählen"},null,{"$f":"IF(OR(F18=\"\",H18=\"\"),\"Wertungen eingeben\",INDEX(Risikobewertung!$B$3:$F$7,MATCH(H18,Risikobewertung!$G$3:$G$7,0),MATCH(Beurteilung!F18,Risikobewertung!$B$8:$F$8,0)))","v":"Wertungen eingeben"},{"$f":"IF(OR(F18=\"\",H18=\"\"),\"\",INDEX(Risikobewertung!$G$33:$G$57,MATCH(F18&H18,Risikobewertung!$D$33:$D$57,0)))","v":""}]
[null,null,null,null,{"$f":"IF(F19=\"\",\"#bitte Buchstaben rechts wählen\",INDEX(Risikobewertung!$B$2:$F$2,MATCH(Beurteilung!F19,Risikobewertung!$B$8:$F$8,0)))","v":"#bitte Buchstaben rechts wählen"},null,{"$f":"IF(H19=\"\",\"#Bitte Zahl rechts wählen\",INDEX(Risikobewertung!$A$3:$A$7,MATCH(Beurteilung!H19,Risikobewertung!$G$3:$G$7,0)))","v":"#Bitte Zahl rechts wählen"},null,{"$f":"IF(OR(F19=\"\",H19=\"\"),\"Wertungen eingeben\",INDEX(Risikobewertung!$B$3:$F$7,MATCH(H19,Risikobewertung!$G$3:$G$7,0),MATCH(Beurteilung!F19,Risikobewertung!$B$8:$F$8,0)))","v":"Wertungen eingeben"},{"$f":"IF(OR(F19=\"\",H19=\"\"),\"\",INDEX(Risikobewertung!$G$33:$G$57,MATCH(F19&H19,Risikobewertung!$D$33:$D$57,0)))","v":""}]
[null,null,null,null,{"$f":"IF(F20=\"\",\"#bitte Buchstaben rechts wählen\",INDEX(Risikobewertung!$B$2:$F$2,MATCH(Beurteilung!F20,Risikobewertung!$B$8:$F$8,0)))","v":"#bitte Buchstaben rechts wählen"},null,{"$f":"IF(H20=\"\",\"#Bitte Zahl rechts wählen\",INDEX(Risikobewertung!$A$3:$A$7,MATCH(Beurteilung!H20,Risikobewertung!$G$3:$G$7,0)))","v":"#Bitte Zahl rechts wählen"},null,{"$f":"IF(OR(F20=\"\",H20=\"\"),\"Wertungen eingeben\",INDEX(Risikobewertung!$B$3:$F$7,MATCH(H20,Risikobewertung!$G$3:$G$7,0),MATCH(Beurteilung!F20,Risikobewertung!$B$8:$F$8,0)))","v":"Wertungen eingeben"},{"$f":"IF(OR(F20=\"\",H20=\"\"),\"\",INDEX(Risikobewertung!$G$33:$G$57,MATCH(F20&H20,Risikobewertung!$D$33:$D$57,0)))","v":""}]
[null,null,null,null,{"$f":"IF(F21=\"\",\"#bitte Buchstaben rechts wählen\",INDEX(Risikobewertung!$B$2:$F$2,MATCH(Beurteilung!F21,Risikobewertung!$B$8:$F$8,0)))","v":"#bitte Buchstaben rechts wählen"},null,{"$f":"IF(H21=\"\",\"#Bitte Zahl rechts wählen\",INDEX(Risikobewertung!$A$3:$A$7,MATCH(Beurteilung!H21,Risikobewertung!$G$3:$G$7,0)))","v":"#Bitte Zahl rechts wählen"},null,{"$f":"IF(OR(F21=\"\",H21=\"\"),\"Wertungen eingeben\",INDEX(Risikobewertung!$B$3:$F$7,MATCH(H21,Risikobewertung!$G$3:$G$7,0),MATCH(Beurteilung!F21,Risikobewertung!$B$8:$F$8,0)))","v":"Wertungen eingeben"},{"$f":"IF(OR(F21=\"\",H21=\"\"),\"\",INDEX(Risikobewertung!$G$33:$G$57,MATCH(F21&H21,Risikobewertung!$D$33:$D$57,0)))","v":""}]
[null,null,null,null,{"$f":"IF(F22=\"\",\"#bitte Buchstaben rechts wählen\",INDEX(Risikobewertung!$B$2:$F$2,MATCH(Beurteilung!F22,Risikobewertung!$B$8:$F$8,0)))","v":"#bitte Buchstaben rechts wählen"},null,{"$f":"IF(H22=\"\",\"#Bitte Zahl rechts wählen\",INDEX(Risikobewertung!$A$3:$A$7,MATCH(Beurteilung!H22,Risikobewertung!$G$3:$G$7,0)))","v":"#Bitte Zahl rechts wählen"},null,{"$f":"IF(OR(F22=\"\",H22=\"\"),\"Wertungen eingeben\",INDEX(Risikobewertung!$B$3:$F$7,MATCH(H22,Risikobewertung!$G$3:$G$7,0),MATCH(Beurteilung!F22,Risikobewertung!$B$8:$F$8,0)))","v":"Wertungen eingeben"},{"$f":"IF(OR(F22=\"\",H22=\"\"),\"\",INDEX(Risikobewertung!$G$33:$G$57,MATCH(F22&H22,Risikobewertung!$D$33:$D$57,0)))","v":""}]
[null,null,null,null,{"$f":"IF(F23=\"\",\"#bitte Buchstaben rechts wählen\",INDEX(Risikobewertung!$B$2:$F$2,MATCH(Beurteilung!F23,Risikobewertung!$B$8:$F$8,0)))","v":"#bitte Buchstaben rechts wählen"},null,{"$f":"IF(H23=\"\",\"#Bitte Zahl rechts wählen\",INDEX(Risikobewertung!$A$3:$A$7,MATCH(Beurteilung!H23,Risikobewertung!$G$3:$G$7,0)))","v":"#Bitte Zahl rechts wählen"},null,{"$f":"IF(OR(F23=\"\",H23=\"\"),\"Wertungen eingeben\",INDEX(Risikobewertung!$B$3:$F$7,MATCH(H23,Risikobewertung!$G$3:$G$7,0),MATCH(Beurteilung!F23,Risikobewertung!$B$8:$F$8,0)))","v":"Wertungen eingeben"},{"$f":"IF(OR(F23=\"\",H23=\"\"),\"\",INDEX(Risikobewertung!$G$33:$G$57,MATCH(F23&H23,Risikobewertung!$D$33:$D$57,0)))","v":""}]
[null,null,null,null,{"$f":"IF(F24=\"\",\"#bitte Buchstaben rechts wählen\",INDEX(Risikobewertung!$B$2:$F$2,MATCH(Beurteilung!F24,Risikobewertung!$B$8:$F$8,0)))","v":"#bitte Buchstaben rechts wählen"},null,{"$f":"IF(H24=\"\",\"#Bitte Zahl rechts wählen\",INDEX(Risikobewertung!$A$3:$A$7,MATCH(Beurteilung!H24,Risikobewertung!$G$3:$G$7,0)))","v":"#Bitte Zahl rechts wählen"},null,{"$f":"IF(OR(F24=\"\",H24=\"\"),\"Wertungen eingeben\",INDEX(Risikobewertung!$B$3:$F$7,MATCH(H24,Risikobewertung!$G$3:$G$7,0),MATCH(Beurteilung!F24,Risikobewertung!$B$8:$F$8,0)))","v":"Wertungen eingeben"},{"$f":"IF(OR(F24=\"\",H24=\"\"),\"\",INDEX(Risikobewertung!$G$33:$G$57,MATCH(F24&H24,Risikobewertung!$D$33:$D$57,0)))","v":""}]
[null,null,null,null,{"$f":"IF(F25=\"\",\"#bitte Buchstaben rechts wählen\",INDEX(Risikobewertung!$B$2:$F$2,MATCH(Beurteilung!F25,Risikobewertung!$B$8:$F$8,0)))","v":"#bitte Buchstaben rechts wählen"},null,{"$f":"IF(H25=\"\",\"#Bitte Zahl rechts wählen\",INDEX(Risikobewertung!$A$3:$A$7,MATCH(Beurteilung!H25,Risikobewertung!$G$3:$G$7,0)))","v":"#Bitte Zahl rechts wählen"},null,{"$f":"IF(OR(F25=\"\",H25=\"\"),\"Wertungen eingeben\",INDEX(Risikobewertung!$B$3:$F$7,MATCH(H25,Risikobewertung!$G$3:$G$7,0),MATCH(Beurteilung!F25,Risikobewertung!$B$8:$F$8,0)))","v":"Wertungen eingeben"},{"$f":"IF(OR(F25=\"\",H25=\"\"),\"\",INDEX(Risikobewertung!$G$33:$G$57,MATCH(F25&H25,Risikobewertung!$D$33:$D$57,0)))","v":""}]
[null,null,null,null,{"$f":"IF(F26=\"\",\"#bitte Buchstaben rechts wählen\",INDEX(Risikobewertung!$B$2:$F$2,MATCH(Beurteilung!F26,Risikobewertung!$B$8:$F$8,0)))","v":"#bitte Buchstaben rechts wählen"},null,{"$f":"IF(H26=\"\",\"#Bitte Zahl rechts wählen\",INDEX(Risikobewertung!$A$3:$A$7,MATCH(Beurteilung!H26,Risikobewertung!$G$3:$G$7,0)))","v":"#Bitte Zahl rechts wählen"},null,{"$f":"IF(OR(F26=\"\",H26=\"\"),\"Wertungen eingeben\",INDEX(Risikobewertung!$B$3:$F$7,MATCH(H26,Risikobewertung!$G$3:$G$7,0),MATCH(Beurteilung!F26,Risikobewertung!$B$8:$F$8,0)))","v":"Wertungen eingeben"},{"$f":"IF(OR(F26=\"\",H26=\"\"),\"\",INDEX(Risikobewertung!$G$33:$G$57,MATCH(F26&H26,Risikobewertung!$D$33:$D$57,0)))","v":""}]
[null,null,null,null,{"$f":"IF(F27=\"\",\"#bitte Buchstaben rechts wählen\",INDEX(Risikobewertung!$B$2:$F$2,MATCH(Beurteilung!F27,Risikobewertung!$B$8:$F$8,0)))","v":"#bitte Buchstaben rechts wählen"},null,{"$f":"IF(H27=\"\",\"#Bitte Zahl rechts wählen\",INDEX(Risikobewertung!$A$3:$A$7,MATCH(Beurteilung!H27,Risikobewertung!$G$3:$G$7,0)))","v":"#Bitte Zahl rechts wählen"},null,{"$f":"IF(OR(F27=\"\",H27=\"\"),\"Wertungen eingeben\",INDEX(Risikobewertung!$B$3:$F$7,MATCH(H27,Risikobewertung!$G$3:$G$7,0),MATCH(Beurteilung!F27,Risikobewertung!$B$8:$F$8,0)))","v":"Wertungen eingeben"},{"$f":"IF(OR(F27=\"\",H27=\"\"),\"\",INDEX(Risikobewertung!$G$33:$G$57,MATCH(F27&H27,Risikobewertung!$D$33:$D$57,0)))","v":""}]
[null,null,null,null,{"$f":"IF(F28=\"\",\"#bitte Buchstaben rechts wählen\",INDEX(Risikobewertung!$B$2:$F$2,MATCH(Beurteilung!F28,Risikobewertung!$B$8:$F$8,0)))","v":"#bitte Buchstaben rechts wählen"},null,{"$f":"IF(H28=\"\",\"#Bitte Zahl rechts wählen\",INDEX(Risikobewertung!$A$3:$A$7,MATCH(Beurteilung!H28,Risikobewertung!$G$3:$G$7,0)))","v":"#Bitte Zahl rechts wählen"},null,{"$f":"IF(OR(F28=\"\",H28=\"\"),\"Wertungen eingeben\",INDEX(Risikobewertung!$B$3:$F$7,MATCH(H28,Risikobewertung!$G$3:$G$7,0),MATCH(Beurteilung!F28,Risikobewertung!$B$8:$F$8,0)))","v":"Wertungen eingeben"},{"$f":"IF(OR(F28=\"\",H28=\"\"),\"\",INDEX(Risikobewertung!$G$33:$G$57,MATCH(F28&H28,Risikobewertung!$D$33:$D$57,0)))","v":""}]
[null,null,null,null,{"$f":"IF(F29=\"\",\"#bitte Buchstaben rechts wählen\",INDEX(Risikobewertung!$B$2:$F$2,MATCH(Beurteilung!F29,Risikobewertung!$B$8:$F$8,0)))","v":"#bitte Buchstaben rechts wählen"},null,{"$f":"IF(H29=\"\",\"#Bitte Zahl rechts wählen\",INDEX(Risikobewertung!$A$3:$A$7,MATCH(Beurteilung!H29,Risikobewertung!$G$3:$G$7,0)))","v":"#Bitte Zahl rechts wählen"},null,{"$f":"IF(OR(F29=\"\",H29=\"\"),\"Wertungen eingeben\",INDEX(Risikobewertung!$B$3:$F$7,MATCH(H29,Risikobewertung!$G$3:$G$7,0),MATCH(Beurteilung!F29,Risikobewertung!$B$8:$F$8,0)))","v":"Wertungen eingeben"},{"$f":"IF(OR(F29=\"\",H29=\"\"),\"\",INDEX(Risikobewertung!$G$33:$G$57,MATCH(F29&H29,Risikobewertung!$D$33:$D$57,0)))","v":""}]
[null,null,null,null,{"$f":"IF(F30=\"\",\"#bitte Buchstaben rechts wählen\",INDEX(Risikobewertung!$B$2:$F$2,MATCH(Beurteilung!F30,Risikobewertung!$B$8:$F$8,0)))","v":"#bitte Buchstaben rechts wählen"},null,{"$f":"IF(H30=\"\",\"#Bitte Zahl rechts wählen\",INDEX(Risikobewertung!$A$3:$A$7,MATCH(Beurteilung!H30,Risikobewertung!$G$3:$G$7,0)))","v":"#Bitte Zahl rechts wählen"},null,{"$f":"IF(OR(F30=\"\",H30=\"\"),\"Wertungen eingeben\",INDEX(Risikobewertung!$B$3:$F$7,MATCH(H30,Risikobewertung!$G$3:$G$7,0),MATCH(Beurteilung!F30,Risikobewertung!$B$8:$F$8,0)))","v":"Wertungen eingeben"},{"$f":"IF(OR(F30=\"\",H30=\"\"),\"\",INDEX(Risikobewertung!$G$33:$G$57,MATCH(F30&H30,Risikobewertung!$D$33:$D$57,0)))","v":""}]
[null,null,null,null,{"$f":"IF(F31=\"\",\"#bitte Buchstaben rechts wählen\",INDEX(Risikobewertung!$B$2:$F$2,MATCH(Beurteilung!F31,Risikobewertung!$B$8:$F$8,0)))","v":"#bitte Buchstaben rechts wählen"},null,{"$f":"IF(H31=\"\",\"#Bitte Zahl rechts wählen\",INDEX(Risikobewertung!$A$3:$A$7,MATCH(Beurteilung!H31,Risikobewertung!$G$3:$G$7,0)))","v":"#Bitte Zahl rechts wählen"},null,{"$f":"IF(OR(F31=\"\",H31=\"\"),\"Wertungen eingeben\",INDEX(Risikobewertung!$B$3:$F$7,MATCH(H31,Risikobewertung!$G$3:$G$7,0),MATCH(Beurteilung!F31,Risikobewertung!$B$8:$F$8,0)))","v":"Wertungen eingeben"},{"$f":"IF(OR(F31=\"\",H31=\"\"),\"\",INDEX(Risikobewertung!$G$33:$G$57,MATCH(F31&H31,Risikobewertung!$D$33:$D$57,0)))","v":""}]
[null,null,null,null,{"$f":"IF(F32=\"\",\"#bitte Buchstaben rechts wählen\",INDEX(Risikobewertung!$B$2:$F$2,MATCH(Beurteilung!F32,Risikobewertung!$B$8:$F$8,0)))","v":"#bitte Buchstaben rechts wählen"},null,{"$f":"IF(H32=\"\",\"#Bitte Zahl rechts wählen\",INDEX(Risikobewertung!$A$3:$A$7,MATCH(Beurteilung!H32,Risikobewertung!$G$3:$G$7,0)))","v":"#Bitte Zahl rechts wählen"},null,{"$f":"IF(OR(F32=\"\",H32=\"\"),\"Wertungen eingeben\",INDEX(Risikobewertung!$B$3:$F$7,MATCH(H32,Risikobewertung!$G$3:$G$7,0),MATCH(Beurteilung!F32,Risikobewertung!$B$8:$F$8,0)))","v":"Wertungen eingeben"},{"$f":"IF(OR(F32=\"\",H32=\"\"),\"\",INDEX(Risikobewertung!$G$33:$G$57,MATCH(F32&H32,Risikobewertung!$D$33:$D$57,0)))","v":""}]
[null,null,null,null,{"$f":"IF(F33=\"\",\"#bitte Buchstaben rechts wählen\",INDEX(Risikobewertung!$B$2:$F$2,MATCH(Beurteilung!F33,Risikobewertung!$B$8:$F$8,0)))","v":"#bitte Buchstaben rechts wählen"},null,{"$f":"IF(H33=\"\",\"#Bitte Zahl rechts wählen\",INDEX(Risikobewertung!$A$3:$A$7,MATCH(Beurteilung!H33,Risikobewertung!$G$3:$G$7,0)))","v":"#Bitte Zahl rechts wählen"},null,{"$f":"IF(OR(F33=\"\",H33=\"\"),\"Wertungen eingeben\",INDEX(Risikobewertung!$B$3:$F$7,MATCH(H33,Risikobewertung!$G$3:$G$7,0),MATCH(Beurteilung!F33,Risikobewertung!$B$8:$F$8,0)))","v":"Wertungen eingeben"},{"$f":"IF(OR(F33=\"\",H33=\"\"),\"\",INDEX(Risikobewertung!$G$33:$G$57,MATCH(F33&H33,Risikobewertung!$D$33:$D$57,0)))","v":""}]
[null,null,null,null,{"$f":"IF(F34=\"\",\"#bitte Buchstaben rechts wählen\",INDEX(Risikobewertung!$B$2:$F$2,MATCH(Beurteilung!F34,Risikobewertung!$B$8:$F$8,0)))","v":"#bitte Buchstaben rechts wählen"},null,{"$f":"IF(H34=\"\",\"#Bitte Zahl rechts wählen\",INDEX(Risikobewertung!$A$3:$A$7,MATCH(Beurteilung!H34,Risikobewertung!$G$3:$G$7,0)))","v":"#Bitte Zahl rechts wählen"},null,{"$f":"IF(OR(F34=\"\",H34=\"\"),\"Wertungen eingeben\",INDEX(Risikobewertung!$B$3:$F$7,MATCH(H34,Risikobewertung!$G$3:$G$7,0),MATCH(Beurteilung!F34,Risikobewertung!$B$8:$F$8,0)))","v":"Wertungen eingeben"},{"$f":"IF(OR(F34=\"\",H34=\"\"),\"\",INDEX(Risikobewertung!$G$33:$G$57,MATCH(F34&H34,Risikobewertung!$D$33:$D$57,0)))","v":""}]
[null,null,null,null,{"$f":"IF(F35=\"\",\"#bitte Buchstaben rechts wählen\",INDEX(Risikobewertung!$B$2:$F$2,MATCH(Beurteilung!F35,Risikobewertung!$B$8:$F$8,0)))","v":"#bitte Buchstaben rechts wählen"},null,{"$f":"IF(H35=\"\",\"#Bitte Zahl rechts wählen\",INDEX(Risikobewertung!$A$3:$A$7,MATCH(Beurteilung!H35,Risikobewertung!$G$3:$G$7,0)))","v":"#Bitte Zahl rechts wählen"},null,{"$f":"IF(OR(F35=\"\",H35=\"\"),\"Wertungen eingeben\",INDEX(Risikobewertung!$B$3:$F$7,MATCH(H35,Risikobewertung!$G$3:$G$7,0),MATCH(Beurteilung!F35,Risikobewertung!$B$8:$F$8,0)))","v":"Wertungen eingeben"},{"$f":"IF(OR(F35=\"\",H35=\"\"),\"\",INDEX(Risikobewertung!$G$33:$G$57,MATCH(F35&H35,Risikobewertung!$D$33:$D$57,0)))","v":""}]
[null,null,null,null,{"$f":"IF(F36=\"\",\"#bitte Buchstaben rechts wählen\",INDEX(Risikobewertung!$B$2:$F$2,MATCH(Beurteilung!F36,Risikobewertung!$B$8:$F$8,0)))","v":"#bitte Buchstaben rechts wählen"},null,{"$f":"IF(H36=\"\",\"#Bitte Zahl rechts wählen\",INDEX(Risikobewertung!$A$3:$A$7,MATCH(Beurteilung!H36,Risikobewertung!$G$3:$G$7,0)))","v":"#Bitte Zahl rechts wählen"},null,{"$f":"IF(OR(F36=\"\",H36=\"\"),\"Wertungen eingeben\",INDEX(Risikobewertung!$B$3:$F$7,MATCH(H36,Risikobewertung!$G$3:$G$7,0),MATCH(Beurteilung!F36,Risikobewertung!$B$8:$F$8,0)))","v":"Wertungen eingeben"},{"$f":"IF(OR(F36=\"\",H36=\"\"),\"\",INDEX(Risikobewertung!$G$33:$G$57,MATCH(F36&H36,Risikobewertung!$D$33:$D$57,0)))","v":""}]
[null,null,null,null,{"$f":"IF(F37=\"\",\"#bitte Buchstaben rechts wählen\",INDEX(Risikobewertung!$B$2:$F$2,MATCH(Beurteilung!F37,Risikobewertung!$B$8:$F$8,0)))","v":"#bitte Buchstaben rechts wählen"},null,{"$f":"IF(H37=\"\",\"#Bitte Zahl rechts wählen\",INDEX(Risikobewertung!$A$3:$A$7,MATCH(Beurteilung!H37,Risikobewertung!$G$3:$G$7,0)))","v":"#Bitte Zahl rechts wählen"},null,{"$f":"IF(OR(F37=\"\",H37=\"\"),\"Wertungen eingeben\",INDEX(Risikobewertung!$B$3:$F$7,MATCH(H37,Risikobewertung!$G$3:$G$7,0),MATCH(Beurteilung!F37,Risikobewertung!$B$8:$F$8,0)))","v":"Wertungen eingeben"},{"$f":"IF(OR(F37=\"\",H37=\"\"),\"\",INDEX(Risikobewertung!$G$33:$G$57,MATCH(F37&H37,Risikobewertung!$D$33:$D$57,0)))","v":""}]
[null,null,null,null,{"$f":"IF(F38=\"\",\"#bitte Buchstaben rechts wählen\",INDEX(Risikobewertung!$B$2:$F$2,MATCH(Beurteilung!F38,Risikobewertung!$B$8:$F$8,0)))","v":"#bitte Buchstaben rechts wählen"},null,{"$f":"IF(H38=\"\",\"#Bitte Zahl rechts wählen\",INDEX(Risikobewertung!$A$3:$A$7,MATCH(Beurteilung!H38,Risikobewertung!$G$3:$G$7,0)))","v":"#Bitte Zahl rechts wählen"},null,{"$f":"IF(OR(F38=\"\",H38=\"\"),\"Wertungen eingeben\",INDEX(Risikobewertung!$B$3:$F$7,MATCH(H38,Risikobewertung!$G$3:$G$7,0),MATCH(Beurteilung!F38,Risikobewertung!$B$8:$F$8,0)))","v":"Wertungen eingeben"},{"$f":"IF(OR(F38=\"\",H38=\"\"),\"\",INDEX(Risikobewertung!$G$33:$G$57,MATCH(F38&H38,Risikobewertung!$D$33:$D$57,0)))","v":""}]
[null,null,null,null,{"$f":"IF(F39=\"\",\"#bitte Buchstaben rechts wählen\",INDEX(Risikobewertung!$B$2:$F$2,MATCH(Beurteilung!F39,Risikobewertung!$B$8:$F$8,0)))","v":"#bitte Buchstaben rechts wählen"},null,{"$f":"IF(H39=\"\",\"#Bitte Zahl rechts wählen\",INDEX(Risikobewertung!$A$3:$A$7,MATCH(Beurteilung!H39,Risikobewertung!$G$3:$G$7,0)))","v":"#Bitte Zahl rechts wählen"},null,{"$f":"IF(OR(F39=\"\",H39=\"\"),\"Wertungen eingeben\",INDEX(Risikobewertung!$B$3:$F$7,MATCH(H39,Risikobewertung!$G$3:$G$7,0),MATCH(Beurteilung!F39,Risikobewertung!$B$8:$F$8,0)))","v":"Wertungen eingeben"},{"$f":"IF(OR(F39=\"\",H39=\"\"),\"\",INDEX(Risikobewertung!$G$33:$G$57,MATCH(F39&H39,Risikobewertung!$D$33:$D$57,0)))","v":""}]
[null,null,null,null,{"$f":"IF(F40=\"\",\"#bitte Buchstaben rechts wählen\",INDEX(Risikobewertung!$B$2:$F$2,MATCH(Beurteilung!F40,Risikobewertung!$B$8:$F$8,0)))","v":"#bitte Buchstaben rechts wählen"},null,{"$f":"IF(H40=\"\",\"#Bitte Zahl rechts wählen\",INDEX(Risikobewertung!$A$3:$A$7,MATCH(Beurteilung!H40,Risikobewertung!$G$3:$G$7,0)))","v":"#Bitte Zahl rechts wählen"},null,{"$f":"IF(OR(F40=\"\",H40=\"\"),\"Wertungen eingeben\",INDEX(Risikobewertung!$B$3:$F$7,MATCH(H40,Risikobewertung!$G$3:$G$7,0),MATCH(Beurteilung!F40,Risikobewertung!$B$8:$F$8,0)))","v":"Wertungen eingeben"},{"$f":"IF(OR(F40=\"\",H40=\"\"),\"\",INDEX(Risikobewertung!$G$33:$G$57,MATCH(F40&H40,Risikobewertung!$D$33:$D$57,0)))","v":""}]
[null,null,null,null,{"$f":"IF(F41=\"\",\"#bitte Buchstaben rechts wählen\",INDEX(Risikobewertung!$B$2:$F$2,MATCH(Beurteilung!F41,Risikobewertung!$B$8:$F$8,0)))","v":"#bitte Buchstaben rechts wählen"},null,{"$f":"IF(H41=\"\",\"#Bitte Zahl rechts wählen\",INDEX(Risikobewertung!$A$3:$A$7,MATCH(Beurteilung!H41,Risikobewertung!$G$3:$G$7,0)))","v":"#Bitte Zahl rechts wählen"},null,{"$f":"IF(OR(F41=\"\",H41=\"\"),\"Wertungen eingeben\",INDEX(Risikobewertung!$B$3:$F$7,MATCH(H41,Risikobewertung!$G$3:$G$7,0),MATCH(Beurteilung!F41,Risikobewertung!$B$8:$F$8,0)))","v":"Wertungen eingeben"},{"$f":"IF(OR(F41=\"\",H41=\"\"),\"\",INDEX(Risikobewertung!$G$33:$G$57,MATCH(F41&H41,Risikobewertung!$D$33:$D$57,0)))","v":""}]
[null,null,null,null,{"$f":"IF(F42=\"\",\"#bitte Buchstaben rechts wählen\",INDEX(Risikobewertung!$B$2:$F$2,MATCH(Beurteilung!F42,Risikobewertung!$B$8:$F$8,0)))","v":"#bitte Buchstaben rechts wählen"},null,{"$f":"IF(H42=\"\",\"#Bitte Zahl rechts wählen\",INDEX(Risikobewertung!$A$3:$A$7,MATCH(Beurteilung!H42,Risikobewertung!$G$3:$G$7,0)))","v":"#Bitte Zahl rechts wählen"},null,{"$f":"IF(OR(F42=\"\",H42=\"\"),\"Wertungen eingeben\",INDEX(Risikobewertung!$B$3:$F$7,MATCH(H42,Risikobewertung!$G$3:$G$7,0),MATCH(Beurteilung!F42,Risikobewertung!$B$8:$F$8,0)))","v":"Wertungen eingeben"},{"$f":"IF(OR(F42=\"\",H42=\"\"),\"\",INDEX(Risikobewertung!$G$33:$G$57,MATCH(F42&H42,Risikobewertung!$D$33:$D$57,0)))","v":""}]
[null,null,null,null,{"$f":"IF(F43=\"\",\"#bitte Buchstaben rechts wählen\",INDEX(Risikobewertung!$B$2:$F$2,MATCH(Beurteilung!F43,Risikobewertung!$B$8:$F$8,0)))","v":"#bitte Buchstaben rechts wählen"},null,{"$f":"IF(H43=\"\",\"#Bitte Zahl rechts wählen\",INDEX(Risikobewertung!$A$3:$A$7,MATCH(Beurteilung!H43,Risikobewertung!$G$3:$G$7,0)))","v":"#Bitte Zahl rechts wählen"},null,{"$f":"IF(OR(F43=\"\",H43=\"\"),\"Wertungen eingeben\",INDEX(Risikobewertung!$B$3:$F$7,MATCH(H43,Risikobewertung!$G$3:$G$7,0),MATCH(Beurteilung!F43,Risikobewertung!$B$8:$F$8,0)))","v":"Wertungen eingeben"},{"$f":"IF(OR(F43=\"\",H43=\"\"),\"\",INDEX(Risikobewertung!$G$33:$G$57,MATCH(F43&H43,Risikobewertung!$D$33:$D$57,0)))","v":""}]
[null,null,null,null,{"$f":"IF(F44=\"\",\"#bitte Buchstaben rechts wählen\",INDEX(Risikobewertung!$B$2:$F$2,MATCH(Beurteilung!F44,Risikobewertung!$B$8:$F$8,0)))","v":"#bitte Buchstaben rechts wählen"},null,{"$f":"IF(H44=\"\",\"#Bitte Zahl rechts wählen\",INDEX(Risikobewertung!$A$3:$A$7,MATCH(Beurteilung!H44,Risikobewertung!$G$3:$G$7,0)))","v":"#Bitte Zahl rechts wählen"},null,{"$f":"IF(OR(F44=\"\",H44=\"\"),\"Wertungen eingeben\",INDEX(Risikobewertung!$B$3:$F$7,MATCH(H44,Risikobewertung!$G$3:$G$7,0),MATCH(Beurteilung!F44,Risikobewertung!$B$8:$F$8,0)))","v":"Wertungen eingeben"},{"$f":"IF(OR(F44=\"\",H44=\"\"),\"\",INDEX(Risikobewertung!$G$33:$G$57,MATCH(F44&H44,Risikobewertung!$D$33:$D$57,0)))","v":""}]
[null,null,null,null,{"$f":"IF(F45=\"\",\"#bitte Buchstaben rechts wählen\",INDEX(Risikobewertung!$B$2:$F$2,MATCH(Beurteilung!F45,Risikobewertung!$B$8:$F$8,0)))","v":"#bitte Buchstaben rechts wählen"},null,{"$f":"IF(H45=\"\",\"#Bitte Zahl rechts wählen\",INDEX(Risikobewertung!$A$3:$A$7,MATCH(Beurteilung!H45,Risikobewertung!$G$3:$G$7,0)))","v":"#Bitte Zahl rechts wählen"},null,{"$f":"IF(OR(F45=\"\",H45=\"\"),\"Wertungen eingeben\",INDEX(Risikobewertung!$B$3:$F$7,MATCH(H45,Risikobewertung!$G$3:$G$7,0),MATCH(Beurteilung!F45,Risikobewertung!$B$8:$F$8,0)))","v":"Wertungen eingeben"},{"$f":"IF(OR(F45=\"\",H45=\"\"),\"\",INDEX(Risikobewertung!$G$33:$G$57,MATCH(F45&H45,Risikobewertung!$D$33:$D$57,0)))","v":""}]
[null,null,null,null,{"$f":"IF(F46=\"\",\"#bitte Buchstaben rechts wählen\",INDEX(Risikobewertung!$B$2:$F$2,MATCH(Beurteilung!F46,Risikobewertung!$B$8:$F$8,0)))","v":"#bitte Buchstaben rechts wählen"},null,{"$f":"IF(H46=\"\",\"#Bitte Zahl rechts wählen\",INDEX(Risikobewertung!$A$3:$A$7,MATCH(Beurteilung!H46,Risikobewertung!$G$3:$G$7,0)))","v":"#Bitte Zahl rechts wählen"},null,{"$f":"IF(OR(F46=\"\",H46=\"\"),\"Wertungen eingeben\",INDEX(Risikobewertung!$B$3:$F$7,MATCH(H46,Risikobewertung!$G$3:$G$7,0),MATCH(Beurteilung!F46,Risikobewertung!$B$8:$F$8,0)))","v":"Wertungen eingeben"},{"$f":"IF(OR(F46=\"\",H46=\"\"),\"\",INDEX(Risikobewertung!$G$33:$G$57,MATCH(F46&H46,Risikobewertung!$D$33:$D$57,0)))","v":""}]
[null,null,null,null,{"$f":"IF(F47=\"\",\"#bitte Buchstaben rechts wählen\",INDEX(Risikobewertung!$B$2:$F$2,MATCH(Beurteilung!F47,Risikobewertung!$B$8:$F$8,0)))","v":"#bitte Buchstaben rechts wählen"},null,{"$f":"IF(H47=\"\",\"#Bitte Zahl rechts wählen\",INDEX(Risikobewertung!$A$3:$A$7,MATCH(Beurteilung!H47,Risikobewertung!$G$3:$G$7,0)))","v":"#Bitte Zahl rechts wählen"},null,{"$f":"IF(OR(F47=\"\",H47=\"\"),\"Wertungen eingeben\",INDEX(Risikobewertung!$B$3:$F$7,MATCH(H47,Risikobewertung!$G$3:$G$7,0),MATCH(Beurteilung!F47,Risikobewertung!$B$8:$F$8,0)))","v":"Wertungen eingeben"},{"$f":"IF(OR(F47=\"\",H47=\"\"),\"\",INDEX(Risikobewertung!$G$33:$G$57,MATCH(F47&H47,Risikobewertung!$D$33:$D$57,0)))","v":""}]
[null,null,null,null,{"$f":"IF(F48=\"\",\"#bitte Buchstaben rechts wählen\",INDEX(Risikobewertung!$B$2:$F$2,MATCH(Beurteilung!F48,Risikobewertung!$B$8:$F$8,0)))","v":"#bitte Buchstaben rechts wählen"},null,{"$f":"IF(H48=\"\",\"#Bitte Zahl rechts wählen\",INDEX(Risikobewertung!$A$3:$A$7,MATCH(Beurteilung!H48,Risikobewertung!$G$3:$G$7,0)))","v":"#Bitte Zahl rechts wählen"},null,{"$f":"IF(OR(F48=\"\",H48=\"\"),\"Wertungen eingeben\",INDEX(Risikobewertung!$B$3:$F$7,MATCH(H48,Risikobewertung!$G$3:$G$7,0),MATCH(Beurteilung!F48,Risikobewertung!$B$8:$F$8,0)))","v":"Wertungen eingeben"},{"$f":"IF(OR(F48=\"\",H48=\"\"),\"\",INDEX(Risikobewertung!$G$33:$G$57,MATCH(F48&H48,Risikobewertung!$D$33:$D$57,0)))","v":""}]
[null,null,null,null,{"$f":"IF(F49=\"\",\"#bitte Buchstaben rechts wählen\",INDEX(Risikobewertung!$B$2:$F$2,MATCH(Beurteilung!F49,Risikobewertung!$B$8:$F$8,0)))","v":"#bitte Buchstaben rechts wählen"},null,{"$f":"IF(H49=\"\",\"#Bitte Zahl rechts wählen\",INDEX(Risikobewertung!$A$3:$A$7,MATCH(Beurteilung!H49,Risikobewertung!$G$3:$G$7,0)))","v":"#Bitte Zahl rechts wählen"},null,{"$f":"IF(OR(F49=\"\",H49=\"\"),\"Wertungen eingeben\",INDEX(Risikobewertung!$B$3:$F$7,MATCH(H49,Risikobewertung!$G$3:$G$7,0),MATCH(Beurteilung!F49,Risikobewertung!$B$8:$F$8,0)))","v":"Wertungen eingeben"},{"$f":"IF(OR(F49=\"\",H49=\"\"),\"\",INDEX(Risikobewertung!$G$33:$G$57,MATCH(F49&H49,Risikobewertung!$D$33:$D$57,0)))","v":""}]
[null,null,null,null,{"$f":"IF(F50=\"\",\"#bitte Buchstaben rechts wählen\",INDEX(Risikobewertung!$B$2:$F$2,MATCH(Beurteilung!F50,Risikobewertung!$B$8:$F$8,0)))","v":"#bitte Buchstaben rechts wählen"},null,{"$f":"IF(H50=\"\",\"#Bitte Zahl rechts wählen\",INDEX(Risikobewertung!$A$3:$A$7,MATCH(Beurteilung!H50,Risikobewertung!$G$3:$G$7,0)))","v":"#Bitte Zahl rechts wählen"},null,{"$f":"IF(OR(F50=\"\",H50=\"\"),\"Wertungen eingeben\",INDEX(Risikobewertung!$B$3:$F$7,MATCH(H50,Risikobewertung!$G$3:$G$7,0),MATCH(Beurteilung!F50,Risikobewertung!$B$8:$F$8,0)))","v":"Wertungen eingeben"},{"$f":"IF(OR(F50=\"\",H50=\"\"),\"\",INDEX(Risikobewertung!$G$33:$G$57,MATCH(F50&H50,Risikobewertung!$D$33:$D$57,0)))","v":""}]
[null,null,null,null,{"$f":"IF(F51=\"\",\"#bitte Buchstaben rechts wählen\",INDEX(Risikobewertung!$B$2:$F$2,MATCH(Beurteilung!F51,Risikobewertung!$B$8:$F$8,0)))","v":"#bitte Buchstaben rechts wählen"},null,{"$f":"IF(H51=\"\",\"#Bitte Zahl rechts wählen\",INDEX(Risikobewertung!$A$3:$A$7,MATCH(Beurteilung!H51,Risikobewertung!$G$3:$G$7,0)))","v":"#Bitte Zahl rechts wählen"},null,{"$f":"IF(OR(F51=\"\",H51=\"\"),\"Wertungen eingeben\",INDEX(Risikobewertung!$B$3:$F$7,MATCH(H51,Risikobewertung!$G$3:$G$7,0),MATCH(Beurteilung!F51,Risikobewertung!$B$8:$F$8,0)))","v":"Wertungen eingeben"},{"$f":"IF(OR(F51=\"\",H51=\"\"),\"\",INDEX(Risikobewertung!$G$33:$G$57,MATCH(F51&H51,Risikobewertung!$D$33:$D$57,0)))","v":""}]
[null,null,null,null,{"$f":"IF(F52=\"\",\"#bitte Buchstaben rechts wählen\",INDEX(Risikobewertung!$B$2:$F$2,MATCH(Beurteilung!F52,Risikobewertung!$B$8:$F$8,0)))","v":"#bitte Buchstaben rechts wählen"},null,{"$f":"IF(H52=\"\",\"#Bitte Zahl rechts wählen\",INDEX(Risikobewertung!$A$3:$A$7,MATCH(Beurteilung!H52,Risikobewertung!$G$3:$G$7,0)))","v":"#Bitte Zahl rechts wählen"},null,{"$f":"IF(OR(F52=\"\",H52=\"\"),\"Wertungen eingeben\",INDEX(Risikobewertung!$B$3:$F$7,MATCH(H52,Risikobewertung!$G$3:$G$7,0),MATCH(Beurteilung!F52,Risikobewertung!$B$8:$F$8,0)))","v":"Wertungen eingeben"},{"$f":"IF(OR(F52=\"\",H52=\"\"),\"\",INDEX(Risikobewertung!$G$33:$G$57,MATCH(F52&H52,Risikobewertung!$D$33:$D$57,0)))","v":""}]
[null,null,null,null,{"$f":"IF(F53=\"\",\"#bitte Buchstaben rechts wählen\",INDEX(Risikobewertung!$B$2:$F$2,MATCH(Beurteilung!F53,Risikobewertung!$B$8:$F$8,0)))","v":"#bitte Buchstaben rechts wählen"},null,{"$f":"IF(H53=\"\",\"#Bitte Zahl rechts wählen\",INDEX(Risikobewertung!$A$3:$A$7,MATCH(Beurteilung!H53,Risikobewertung!$G$3:$G$7,0)))","v":"#Bitte Zahl rechts wählen"},null,{"$f":"IF(OR(F53=\"\",H53=\"\"),\"Wertungen eingeben\",INDEX(Risikobewertung!$B$3:$F$7,MATCH(H53,Risikobewertung!$G$3:$G$7,0),MATCH(Beurteilung!F53,Risikobewertung!$B$8:$F$8,0)))","v":"Wertungen eingeben"},{"$f":"IF(OR(F53=\"\",H53=\"\"),\"\",INDEX(Risikobewertung!$G$33:$G$57,MATCH(F53&H53,Risikobewertung!$D$33:$D$57,0)))","v":""}]
[null,null,null,null,{"$f":"IF(F54=\"\",\"#bitte Buchstaben rechts wählen\",INDEX(Risikobewertung!$B$2:$F$2,MATCH(Beurteilung!F54,Risikobewertung!$B$8:$F$8,0)))","v":"#bitte Buchstaben rechts wählen"},null,{"$f":"IF(H54=\"\",\"#Bitte Zahl rechts wählen\",INDEX(Risikobewertung!$A$3:$A$7,MATCH(Beurteilung!H54,Risikobewertung!$G$3:$G$7,0)))","v":"#Bitte Zahl rechts wählen"},null,{"$f":"IF(OR(F54=\"\",H54=\"\"),\"Wertungen eingeben\",INDEX(Risikobewertung!$B$3:$F$7,MATCH(H54,Risikobewertung!$G$3:$G$7,0),MATCH(Beurteilung!F54,Risikobewertung!$B$8:$F$8,0)))","v":"Wertungen eingeben"},{"$f":"IF(OR(F54=\"\",H54=\"\"),\"\",INDEX(Risikobewertung!$G$33:$G$57,MATCH(F54&H54,Risikobewertung!$D$33:$D$57,0)))","v":""}]
[null,null,null,null,{"$f":"IF(F55=\"\",\"#bitte Buchstaben rechts wählen\",INDEX(Risikobewertung!$B$2:$F$2,MATCH(Beurteilung!F55,Risikobewertung!$B$8:$F$8,0)))","v":"#bitte Buchstaben rechts wählen"},null,{"$f":"IF(H55=\"\",\"#Bitte Zahl rechts wählen\",INDEX(Risikobewertung!$A$3:$A$7,MATCH(Beurteilung!H55,Risikobewertung!$G$3:$G$7,0)))","v":"#Bitte Zahl rechts wählen"},null,{"$f":"IF(OR(F55=\"\",H55=\"\"),\"Wertungen eingeben\",INDEX(Risikobewertung!$B$3:$F$7,MATCH(H55,Risikobewertung!$G$3:$G$7,0),MATCH(Beurteilung!F55,Risikobewertung!$B$8:$F$8,0)))","v":"Wertungen eingeben"},{"$f":"IF(OR(F55=\"\",H55=\"\"),\"\",INDEX(Risikobewertung!$G$33:$G$57,MATCH(F55&H55,Risikobewertung!$D$33:$D$57,0)))","v":""}]
[null,null,null,null,{"$f":"IF(F56=\"\",\"#bitte Buchstaben rechts wählen\",INDEX(Risikobewertung!$B$2:$F$2,MATCH(Beurteilung!F56,Risikobewertung!$B$8:$F$8,0)))","v":"#bitte Buchstaben rechts wählen"},null,{"$f":"IF(H56=\"\",\"#Bitte Zahl rechts wählen\",INDEX(Risikobewertung!$A$3:$A$7,MATCH(Beurteilung!H56,Risikobewertung!$G$3:$G$7,0)))","v":"#Bitte Zahl rechts wählen"},null,{"$f":"IF(OR(F56=\"\",H56=\"\"),\"Wertungen eingeben\",INDEX(Risikobewertung!$B$3:$F$7,MATCH(H56,Risikobewertung!$G$3:$G$7,0),MATCH(Beurteilung!F56,Risikobewertung!$B$8:$F$8,0)))","v":"Wertungen eingeben"},{"$f":"IF(OR(F56=\"\",H56=\"\"),\"\",INDEX(Risikobewertung!$G$33:$G$57,MATCH(F56&H56,Risikobewertung!$D$33:$D$57,0)))","v":""}]
[null,null,null,null,{"$f":"IF(F57=\"\",\"#bitte Buchstaben rechts wählen\",INDEX(Risikobewertung!$B$2:$F$2,MATCH(Beurteilung!F57,Risikobewertung!$B$8:$F$8,0)))","v":"#bitte Buchstaben rechts wählen"},null,{"$f":"IF(H57=\"\",\"#Bitte Zahl rechts wählen\",INDEX(Risikobewertung!$A$3:$A$7,MATCH(Beurteilung!H57,Risikobewertung!$G$3:$G$7,0)))","v":"#Bitte Zahl rechts wählen"},null,{"$f":"IF(OR(F57=\"\",H57=\"\"),\"Wertungen eingeben\",INDEX(Risikobewertung!$B$3:$F$7,MATCH(H57,Risikobewertung!$G$3:$G$7,0),MATCH(Beurteilung!F57,Risikobewertung!$B$8:$F$8,0)))","v":"Wertungen eingeben"},{"$f":"IF(OR(F57=\"\",H57=\"\"),\"\",INDEX(Risikobewertung!$G$33:$G$57,MATCH(F57&H57,Risikobewertung!$D$33:$D$57,0)))","v":""}]
[null,null,null,null,{"$f":"IF(F58=\"\",\"#bitte Buchstaben rechts wählen\",INDEX(Risikobewertung!$B$2:$F$2,MATCH(Beurteilung!F58,Risikobewertung!$B$8:$F$8,0)))","v":"#bitte Buchstaben rechts wählen"},null,{"$f":"IF(H58=\"\",\"#Bitte Zahl rechts wählen\",INDEX(Risikobewertung!$A$3:$A$7,MATCH(Beurteilung!H58,Risikobewertung!$G$3:$G$7,0)))","v":"#Bitte Zahl rechts wählen"},null,{"$f":"IF(OR(F58=\"\",H58=\"\"),\"Wertungen eingeben\",INDEX(Risikobewertung!$B$3:$F$7,MATCH(H58,Risikobewertung!$G$3:$G$7,0),MATCH(Beurteilung!F58,Risikobewertung!$B$8:$F$8,0)))","v":"Wertungen eingeben"},{"$f":"IF(OR(F58=\"\",H58=\"\"),\"\",INDEX(Risikobewertung!$G$33:$G$57,MATCH(F58&H58,Risikobewertung!$D$33:$D$57,0)))","v":""}]
[null,null,null,null,{"$f":"IF(F59=\"\",\"#bitte Buchstaben rechts wählen\",INDEX(Risikobewertung!$B$2:$F$2,MATCH(Beurteilung!F59,Risikobewertung!$B$8:$F$8,0)))","v":"#bitte Buchstaben rechts wählen"},null,{"$f":"IF(H59=\"\",\"#Bitte Zahl rechts wählen\",INDEX(Risikobewertung!$A$3:$A$7,MATCH(Beurteilung!H59,Risikobewertung!$G$3:$G$7,0)))","v":"#Bitte Zahl rechts wählen"},null,{"$f":"IF(OR(F59=\"\",H59=\"\"),\"Wertungen eingeben\",INDEX(Risikobewertung!$B$3:$F$7,MATCH(H59,Risikobewertung!$G$3:$G$7,0),MATCH(Beurteilung!F59,Risikobewertung!$B$8:$F$8,0)))","v":"Wertungen eingeben"},{"$f":"IF(OR(F59=\"\",H59=\"\"),\"\",INDEX(Risikobewertung!$G$33:$G$57,MATCH(F59&H59,Risikobewertung!$D$33:$D$57,0)))","v":""}]
[null,null,null,null,{"$f":"IF(F60=\"\",\"#bitte Buchstaben rechts wählen\",INDEX(Risikobewertung!$B$2:$F$2,MATCH(Beurteilung!F60,Risikobewertung!$B$8:$F$8,0)))","v":"#bitte Buchstaben rechts wählen"},null,{"$f":"IF(H60=\"\",\"#Bitte Zahl rechts wählen\",INDEX(Risikobewertung!$A$3:$A$7,MATCH(Beurteilung!H60,Risikobewertung!$G$3:$G$7,0)))","v":"#Bitte Zahl rechts wählen"},null,{"$f":"IF(OR(F60=\"\",H60=\"\"),\"Wertungen eingeben\",INDEX(Risikobewertung!$B$3:$F$7,MATCH(H60,Risikobewertung!$G$3:$G$7,0),MATCH(Beurteilung!F60,Risikobewertung!$B$8:$F$8,0)))","v":"Wertungen eingeben"},{"$f":"IF(OR(F60=\"\",H60=\"\"),\"\",INDEX(Risikobewertung!$G$33:$G$57,MATCH(F60&H60,Risikobewertung!$D$33:$D$57,0)))","v":""}]
[null,null,null,null,{"$f":"IF(F61=\"\",\"#bitte Buchstaben rechts wählen\",INDEX(Risikobewertung!$B$2:$F$2,MATCH(Beurteilung!F61,Risikobewertung!$B$8:$F$8,0)))","v":"#bitte Buchstaben rechts wählen"},null,{"$f":"IF(H61=\"\",\"#Bitte Zahl rechts wählen\",INDEX(Risikobewertung!$A$3:$A$7,MATCH(Beurteilung!H61,Risikobewertung!$G$3:$G$7,0)))","v":"#Bitte Zahl rechts wählen"},null,{"$f":"IF(OR(F61=\"\",H61=\"\"),\"Wertungen eingeben\",INDEX(Risikobewertung!$B$3:$F$7,MATCH(H61,Risikobewertung!$G$3:$G$7,0),MATCH(Beurteilung!F61,Risikobewertung!$B$8:$F$8,0)))","v":"Wertungen eingeben"},{"$f":"IF(OR(F61=\"\",H61=\"\"),\"\",INDEX(Risikobewertung!$G$33:$G$57,MATCH(F61&H61,Risikobewertung!$D$33:$D$57,0)))","v":""}]
[null,null,null,null,{"$f":"IF(F62=\"\",\"#bitte Buchstaben rechts wählen\",INDEX(Risikobewertung!$B$2:$F$2,MATCH(Beurteilung!F62,Risikobewertung!$B$8:$F$8,0)))","v":"#bitte Buchstaben rechts wählen"},null,{"$f":"IF(H62=\"\",\"#Bitte Zahl rechts wählen\",INDEX(Risikobewertung!$A$3:$A$7,MATCH(Beurteilung!H62,Risikobewertung!$G$3:$G$7,0)))","v":"#Bitte Zahl rechts wählen"},null,{"$f":"IF(OR(F62=\"\",H62=\"\"),\"Wertungen eingeben\",INDEX(Risikobewertung!$B$3:$F$7,MATCH(H62,Risikobewertung!$G$3:$G$7,0),MATCH(Beurteilung!F62,Risikobewertung!$B$8:$F$8,0)))","v":"Wertungen eingeben"},{"$f":"IF(OR(F62=\"\",H62=\"\"),\"\",INDEX(Risikobewertung!$G$33:$G$57,MATCH(F62&H62,Risikobewertung!$D$33:$D$57,0)))","v":""}]
[null,null,null,null,{"$f":"IF(F63=\"\",\"#bitte Buchstaben rechts wählen\",INDEX(Risikobewertung!$B$2:$F$2,MATCH(Beurteilung!F63,Risikobewertung!$B$8:$F$8,0)))","v":"#bitte Buchstaben rechts wählen"},null,{"$f":"IF(H63=\"\",\"#Bitte Zahl rechts wählen\",INDEX(Risikobewertung!$A$3:$A$7,MATCH(Beurteilung!H63,Risikobewertung!$G$3:$G$7,0)))","v":"#Bitte Zahl rechts wählen"},null,{"$f":"IF(OR(F63=\"\",H63=\"\"),\"Wertungen eingeben\",INDEX(Risikobewertung!$B$3:$F$7,MATCH(H63,Risikobewertung!$G$3:$G$7,0),MATCH(Beurteilung!F63,Risikobewertung!$B$8:$F$8,0)))","v":"Wertungen eingeben"},{"$f":"IF(OR(F63=\"\",H63=\"\"),\"\",INDEX(Risikobewertung!$G$33:$G$57,MATCH(F63&H63,Risikobewertung!$D$33:$D$57,0)))","v":""}]
[null,null,null,null,{"$f":"IF(F64=\"\",\"#bitte Buchstaben rechts wählen\",INDEX(Risikobewertung!$B$2:$F$2,MATCH(Beurteilung!F64,Risikobewertung!$B$8:$F$8,0)))","v":"#bitte Buchstaben rechts wählen"},null,{"$f":"IF(H64=\"\",\"#Bitte Zahl rechts wählen\",INDEX(Risikobewertung!$A$3:$A$7,MATCH(Beurteilung!H64,Risikobewertung!$G$3:$G$7,0)))","v":"#Bitte Zahl rechts wählen"},null,{"$f":"IF(OR(F64=\"\",H64=\"\"),\"Wertungen eingeben\",INDEX(Risikobewertung!$B$3:$F$7,MATCH(H64,Risikobewertung!$G$3:$G$7,0),MATCH(Beurteilung!F64,Risikobewertung!$B$8:$F$8,0)))","v":"Wertungen eingeben"},{"$f":"IF(OR(F64=\"\",H64=\"\"),\"\",INDEX(Risikobewertung!$G$33:$G$57,MATCH(F64&H64,Risikobewertung!$D$33:$D$57,0)))","v":""}]
[null,null,null,null,{"$f":"IF(F65=\"\",\"#bitte Buchstaben rechts wählen\",INDEX(Risikobewertung!$B$2:$F$2,MATCH(Beurteilung!F65,Risikobewertung!$B$8:$F$8,0)))","v":"#bitte Buchstaben rechts wählen"},null,{"$f":"IF(H65=\"\",\"#Bitte Zahl rechts wählen\",INDEX(Risikobewertung!$A$3:$A$7,MATCH(Beurteilung!H65,Risikobewertung!$G$3:$G$7,0)))","v":"#Bitte Zahl rechts wählen"},null,{"$f":"IF(OR(F65=\"\",H65=\"\"),\"Wertungen eingeben\",INDEX(Risikobewertung!$B$3:$F$7,MATCH(H65,Risikobewertung!$G$3:$G$7,0),MATCH(Beurteilung!F65,Risikobewertung!$B$8:$F$8,0)))","v":"Wertungen eingeben"},{"$f":"IF(OR(F65=\"\",H65=\"\"),\"\",INDEX(Risikobewertung!$G$33:$G$57,MATCH(F65&H65,Risikobewertung!$D$33:$D$57,0)))","v":""}]
[null,null,null,null,{"$f":"IF(F66=\"\",\"#bitte Buchstaben rechts wählen\",INDEX(Risikobewertung!$B$2:$F$2,MATCH(Beurteilung!F66,Risikobewertung!$B$8:$F$8,0)))","v":"#bitte Buchstaben rechts wählen"},null,{"$f":"IF(H66=\"\",\"#Bitte Zahl rechts wählen\",INDEX(Risikobewertung!$A$3:$A$7,MATCH(Beurteilung!H66,Risikobewertung!$G$3:$G$7,0)))","v":"#Bitte Zahl rechts wählen"},null,{"$f":"IF(OR(F66=\"\",H66=\"\"),\"Wertungen eingeben\",INDEX(Risikobewertung!$B$3:$F$7,MATCH(H66,Risikobewertung!$G$3:$G$7,0),MATCH(Beurteilung!F66,Risikobewertung!$B$8:$F$8,0)))","v":"Wertungen eingeben"},{"$f":"IF(OR(F66=\"\",H66=\"\"),\"\",INDEX(Risikobewertung!$G$33:$G$57,MATCH(F66&H66,Risikobewertung!$D$33:$D$57,0)))","v":""}]
[null,null,null,null,{"$f":"IF(F67=\"\",\"#bitte Buchstaben rechts wählen\",INDEX(Risikobewertung!$B$2:$F$2,MATCH(Beurteilung!F67,Risikobewertung!$B$8:$F$8,0)))","v":"#bitte Buchstaben rechts wählen"},null,{"$f":"IF(H67=\"\",\"#Bitte Zahl rechts wählen\",INDEX(Risikobewertung!$A$3:$A$7,MATCH(Beurteilung!H67,Risikobewertung!$G$3:$G$7,0)))","v":"#Bitte Zahl rechts wählen"},null,{"$f":"IF(OR(F67=\"\",H67=\"\"),\"Wertungen eingeben\",INDEX(Risikobewertung!$B$3:$F$7,MATCH(H67,Risikobewertung!$G$3:$G$7,0),MATCH(Beurteilung!F67,Risikobewertung!$B$8:$F$8,0)))","v":"Wertungen eingeben"},{"$f":"IF(OR(F67=\"\",H67=\"\"),\"\",INDEX(Risikobewertung!$G$33:$G$57,MATCH(F67&H67,Risikobewertung!$D$33:$D$57,0)))","v":""}]
[null,null,null,null,{"$f":"IF(F68=\"\",\"#bitte Buchstaben rechts wählen\",INDEX(Risikobewertung!$B$2:$F$2,MATCH(Beurteilung!F68,Risikobewertung!$B$8:$F$8,0)))","v":"#bitte Buchstaben rechts wählen"},null,{"$f":"IF(H68=\"\",\"#Bitte Zahl rechts wählen\",INDEX(Risikobewertung!$A$3:$A$7,MATCH(Beurteilung!H68,Risikobewertung!$G$3:$G$7,0)))","v":"#Bitte Zahl rechts wählen"},null,{"$f":"IF(OR(F68=\"\",H68=\"\"),\"Wertungen eingeben\",INDEX(Risikobewertung!$B$3:$F$7,MATCH(H68,Risikobewertung!$G$3:$G$7,0),MATCH(Beurteilung!F68,Risikobewertung!$B$8:$F$8,0)))","v":"Wertungen eingeben"},{"$f":"IF(OR(F68=\"\",H68=\"\"),\"\",INDEX(Risikobewertung!$G$33:$G$57,MATCH(F68&H68,Risikobewertung!$D$33:$D$57,0)))","v":""}]
[null,null,null,null,{"$f":"IF(F69=\"\",\"#bitte Buchstaben rechts wählen\",INDEX(Risikobewertung!$B$2:$F$2,MATCH(Beurteilung!F69,Risikobewertung!$B$8:$F$8,0)))","v":"#bitte Buchstaben rechts wählen"},null,{"$f":"IF(H69=\"\",\"#Bitte Zahl rechts wählen\",INDEX(Risikobewertung!$A$3:$A$7,MATCH(Beurteilung!H69,Risikobewertung!$G$3:$G$7,0)))","v":"#Bitte Zahl rechts wählen"},null,{"$f":"IF(OR(F69=\"\",H69=\"\"),\"Wertungen eingeben\",INDEX(Risikobewertung!$B$3:$F$7,MATCH(H69,Risikobewertung!$G$3:$G$7,0),MATCH(Beurteilung!F69,Risikobewertung!$B$8:$F$8,0)))","v":"Wertungen eingeben"},{"$f":"IF(OR(F69=\"\",H69=\"\"),\"\",INDEX(Risikobewertung!$G$33:$G$57,MATCH(F69&H69,Risikobewertung!$D$33:$D$57,0)))","v":""}]
[null,null,null,null,{"$f":"IF(F70=\"\",\"#bitte Buchstaben rechts wählen\",INDEX(Risikobewertung!$B$2:$F$2,MATCH(Beurteilung!F70,Risikobewertung!$B$8:$F$8,0)))","v":"#bitte Buchstaben rechts wählen"},null,{"$f":"IF(H70=\"\",\"#Bitte Zahl rechts wählen\",INDEX(Risikobewertung!$A$3:$A$7,MATCH(Beurteilung!H70,Risikobewertung!$G$3:$G$7,0)))","v":"#Bitte Zahl rechts wählen"},null,{"$f":"IF(OR(F70=\"\",H70=\"\"),\"Wertungen eingeben\",INDEX(Risikobewertung!$B$3:$F$7,MATCH(H70,Risikobewertung!$G$3:$G$7,0),MATCH(Beurteilung!F70,Risikobewertung!$B$8:$F$8,0)))","v":"Wertungen eingeben"},{"$f":"IF(OR(F70=\"\",H70=\"\"),\"\",INDEX(Risikobewertung!$G$33:$G$57,MATCH(F70&H70,Risikobewertung!$D$33:$D$57,0)))","v":""}]
[null,null,null,null,{"$f":"IF(F71=\"\",\"#bitte Buchstaben rechts wählen\",INDEX(Risikobewertung!$B$2:$F$2,MATCH(Beurteilung!F71,Risikobewertung!$B$8:$F$8,0)))","v":"#bitte Buchstaben rechts wählen"},null,{"$f":"IF(H71=\"\",\"#Bitte Zahl rechts wählen\",INDEX(Risikobewertung!$A$3:$A$7,MATCH(Beurteilung!H71,Risikobewertung!$G$3:$G$7,0)))","v":"#Bitte Zahl rechts wählen"},null,{"$f":"IF(OR(F71=\"\",H71=\"\"),\"Wertungen eingeben\",INDEX(Risikobewertung!$B$3:$F$7,MATCH(H71,Risikobewertung!$G$3:$G$7,0),MATCH(Beurteilung!F71,Risikobewertung!$B$8:$F$8,0)))","v":"Wertungen eingeben"},{"$f":"IF(OR(F71=\"\",H71=\"\"),\"\",INDEX(Risikobewertung!$G$33:$G$57,MATCH(F71&H71,Risikobewertung!$D$33:$D$57,0)))","v":""}]
[null,null,null,null,{"$f":"IF(F72=\"\",\"#bitte Buchstaben rechts wählen\",INDEX(Risikobewertung!$B$2:$F$2,MATCH(Beurteilung!F72,Risikobewertung!$B$8:$F$8,0)))","v":"#bitte Buchstaben rechts wählen"},null,{"$f":"IF(H72=\"\",\"#Bitte Zahl rechts wählen\",INDEX(Risikobewertung!$A$3:$A$7,MATCH(Beurteilung!H72,Risikobewertung!$G$3:$G$7,0)))","v":"#Bitte Zahl rechts wählen"},null,{"$f":"IF(OR(F72=\"\",H72=\"\"),\"Wertungen eingeben\",INDEX(Risikobewertung!$B$3:$F$7,MATCH(H72,Risikobewertung!$G$3:$G$7,0),MATCH(Beurteilung!F72,Risikobewertung!$B$8:$F$8,0)))","v":"Wertungen eingeben"},{"$f":"IF(OR(F72=\"\",H72=\"\"),\"\",INDEX(Risikobewertung!$G$33:$G$57,MATCH(F72&H72,Risikobewertung!$D$33:$D$57,0)))","v":""}]
[null,null,null,null,{"$f":"IF(F73=\"\",\"#bitte Buchstaben rechts wählen\",INDEX(Risikobewertung!$B$2:$F$2,MATCH(Beurteilung!F73,Risikobewertung!$B$8:$F$8,0)))","v":"#bitte Buchstaben rechts wählen"},null,{"$f":"IF(H73=\"\",\"#Bitte Zahl rechts wählen\",INDEX(Risikobewertung!$A$3:$A$7,MATCH(Beurteilung!H73,Risikobewertung!$G$3:$G$7,0)))","v":"#Bitte Zahl rechts wählen"},null,{"$f":"IF(OR(F73=\"\",H73=\"\"),\"Wertungen eingeben\",INDEX(Risikobewertung!$B$3:$F$7,MATCH(H73,Risikobewertung!$G$3:$G$7,0),MATCH(Beurteilung!F73,Risikobewertung!$B$8:$F$8,0)))","v":"Wertungen eingeben"},{"$f":"IF(OR(F73=\"\",H73=\"\"),\"\",INDEX(Risikobewertung!$G$33:$G$57,MATCH(F73&H73,Risikobewertung!$D$33:$D$57,0)))","v":""}]
[null,null,null,null,{"$f":"IF(F74=\"\",\"#bitte Buchstaben rechts wählen\",INDEX(Risikobewertung!$B$2:$F$2,MATCH(Beurteilung!F74,Risikobewertung!$B$8:$F$8,0)))","v":"#bitte Buchstaben rechts wählen"},null,{"$f":"IF(H74=\"\",\"#Bitte Zahl rechts wählen\",INDEX(Risikobewertung!$A$3:$A$7,MATCH(Beurteilung!H74,Risikobewertung!$G$3:$G$7,0)))","v":"#Bitte Zahl rechts wählen"},null,{"$f":"IF(OR(F74=\"\",H74=\"\"),\"Wertungen eingeben\",INDEX(Risikobewertung!$B$3:$F$7,MATCH(H74,Risikobewertung!$G$3:$G$7,0),MATCH(Beurteilung!F74,Risikobewertung!$B$8:$F$8,0)))","v":"Wertungen eingeben"},{"$f":"IF(OR(F74=\"\",H74=\"\"),\"\",INDEX(Risikobewertung!$G$33:$G$57,MATCH(F74&H74,Risikobewertung!$D$33:$D$57,0)))","v":""}]
[null,null,null,null,{"$f":"IF(F75=\"\",\"#bitte Buchstaben rechts wählen\",INDEX(Risikobewertung!$B$2:$F$2,MATCH(Beurteilung!F75,Risikobewertung!$B$8:$F$8,0)))","v":"#bitte Buchstaben rechts wählen"},null,{"$f":"IF(H75=\"\",\"#Bitte Zahl rechts wählen\",INDEX(Risikobewertung!$A$3:$A$7,MATCH(Beurteilung!H75,Risikobewertung!$G$3:$G$7,0)))","v":"#Bitte Zahl rechts wählen"},null,{"$f":"IF(OR(F75=\"\",H75=\"\"),\"Wertungen eingeben\",INDEX(Risikobewertung!$B$3:$F$7,MATCH(H75,Risikobewertung!$G$3:$G$7,0),MATCH(Beurteilung!F75,Risikobewertung!$B$8:$F$8,0)))","v":"Wertungen eingeben"},{"$f":"IF(OR(F75=\"\",H75=\"\"),\"\",INDEX(Risikobewertung!$G$33:$G$57,MATCH(F75&H75,Risikobewertung!$D$33:$D$57,0)))","v":""}]
[null,null,null,null,{"$f":"IF(F76=\"\",\"#bitte Buchstaben rechts wählen\",INDEX(Risikobewertung!$B$2:$F$2,MATCH(Beurteilung!F76,Risikobewertung!$B$8:$F$8,0)))","v":"#bitte Buchstaben rechts wählen"},null,{"$f":"IF(H76=\"\",\"#Bitte Zahl rechts wählen\",INDEX(Risikobewertung!$A$3:$A$7,MATCH(Beurteilung!H76,Risikobewertung!$G$3:$G$7,0)))","v":"#Bitte Zahl rechts wählen"},null,{"$f":"IF(OR(F76=\"\",H76=\"\"),\"Wertungen eingeben\",INDEX(Risikobewertung!$B$3:$F$7,MATCH(H76,Risikobewertung!$G$3:$G$7,0),MATCH(Beurteilung!F76,Risikobewertung!$B$8:$F$8,0)))","v":"Wertungen eingeben"},{"$f":"IF(OR(F76=\"\",H76=\"\"),\"\",INDEX(Risikobewertung!$G$33:$G$57,MATCH(F76&H76,Risikobewertung!$D$33:$D$57,0)))","v":""}]
[null,null,null,null,{"$f":"IF(F77=\"\",\"#bitte Buchstaben rechts wählen\",INDEX(Risikobewertung!$B$2:$F$2,MATCH(Beurteilung!F77,Risikobewertung!$B$8:$F$8,0)))","v":"#bitte Buchstaben rechts wählen"},null,{"$f":"IF(H77=\"\",\"#Bitte Zahl rechts wählen\",INDEX(Risikobewertung!$A$3:$A$7,MATCH(Beurteilung!H77,Risikobewertung!$G$3:$G$7,0)))","v":"#Bitte Zahl rechts wählen"},null,{"$f":"IF(OR(F77=\"\",H77=\"\"),\"Wertungen eingeben\",INDEX(Risikobewertung!$B$3:$F$7,MATCH(H77,Risikobewertung!$G$3:$G$7,0),MATCH(Beurteilung!F77,Risikobewertung!$B$8:$F$8,0)))","v":"Wertungen eingeben"},{"$f":"IF(OR(F77=\"\",H77=\"\"),\"\",INDEX(Risikobewertung!$G$33:$G$57,MATCH(F77&H77,Risikobewertung!$D$33:$D$57,0)))","v":""}]
[null,null,null,null,{"$f":"IF(F78=\"\",\"#bitte Buchstaben rechts wählen\",INDEX(Risikobewertung!$B$2:$F$2,MATCH(Beurteilung!F78,Risikobewertung!$B$8:$F$8,0)))","v":"#bitte Buchstaben rechts wählen"},null,{"$f":"IF(H78=\"\",\"#Bitte Zahl rechts wählen\",INDEX(Risikobewertung!$A$3:$A$7,MATCH(Beurteilung!H78,Risikobewertung!$G$3:$G$7,0)))","v":"#Bitte Zahl rechts wählen"},null,{"$f":"IF(OR(F78=\"\",H78=\"\"),\"Wertungen eingeben\",INDEX(Risikobewertung!$B$3:$F$7,MATCH(H78,Risikobewertung!$G$3:$G$7,0),MATCH(Beurteilung!F78,Risikobewertung!$B$8:$F$8,0)))","v":"Wertungen eingeben"},{"$f":"IF(OR(F78=\"\",H78=\"\"),\"\",INDEX(Risikobewertung!$G$33:$G$57,MATCH(F78&H78,Risikobewertung!$D$33:$D$57,0)))","v":""}]

{"sheet":"Gefährdungsfaktoren","index":1,"n_rows":70,"n_cols":3,"rows_kept":70,"cut":false,"hidden":false,"merged":[[0,0,0,2],[62,0,63,0],[62,2,63,2],[56,2,57,2],[58,0,59,0],[58,2,59,2],[60,0,61,0],[60,2,61,2],[56,0,57,0]]}
["Ermittlung und Klassifikation der Gefährdungen"]
["Nr.","Art der Gefährdungsfaktoren","Vorhanden"]
["(Klassifikation)",null,"ja"]
[1,"Mechanische Gefährdungen"]
["1.1","Bewegte Teile","☐"]
["1.2","Oberflächenbeschaffenheit","☐"]
["1.3","Bewegte Transport-/Arbeitsmittel","☐"]
["1.4","Unkontrolliert bewegte oder herabfallende Teile","☐"]
["1.5","Sturz, Ausrutschen, Stolpern, Umknicken","☐"]
["1.6","Absturz","☐"]
[2,"Elektrische Gefährdungen"]
["2.1","Körperdurchströmung, elektrischer Schlag","☐"]
["2.2","Lichtbögen","☐"]
["2.3","Elektrostatische Aufladung","☐"]
[3,"Chemische Gefährdungen - Gefahrstoffe"]
["3.1","Hautkontakt mit Gefahrstoffen (Flüssigkeiten, Feststoffe, Gase)","☐"]
["3.2","Verschlucken von Gefahrstoffen (Flüssigkeiten, Feststoffe, Gase)","☐"]
["3.3","Einatmen von Gefahrstoffen (Gase, Stäube, Nebel, Dämpfe)","☐"]
["3.4","Arbeiten in feuchtem Milieu","☐"]
[4,"Biologische Gefährdungen"]
["4.1","Infektionsgefährdung durch pathogene Mikroorganismen\n(Bakterien, Viren, Pilze)","☐"]
["4.2","Genetisch veränderte Organismen","☐"]
["4.3","Sensibilisierende und toxische Wirkung von Mikroorganismen","☐"]
["4.4","Sensibilisierende und toxische Wirkung von Pflanzenstoffen","☐"]
[5,"Brand und Explosionsgefährdungen"]
["5.1","Brandgefährdung durch Feststoffe, Flüssigkeiten oder Gase","☐"]
["5.2","Explosionsfähige Atmosphäre","☐"]
["5.3","Explosivstoffe","☐"]
[6,"Thermische Gefährdungen"]
["6.1","Heiße Medien","☐"]
["6.2","Heiße Oberflächen","☐"]
["6.3","Kalte Medien","☐"]
["6.4","Kalte Oberflächen","☐"]
[7,"Spezielle Physikalische Einwirkungen"]
["7.1","Lärm","☐"]
["7.2","Infra-/ Ultraschall","☐"]
["7.3","Hand-Arm-Vibrationen","☐"]
["7.4","Ganzkörper-Vibrationen","☐"]
["7.5","optische Strahlung (Infrarot, UV, Laserstrahlung)","☐"]
["7.6","Ionisierende Strahlung (Röntgenstrahlung, radioaktive Strahlung)","☐"]
["7.7","Elektromagnetische Strahlung","☐"]
["7.8","Unter- oder Überdruck","☐"]
[8,"Gefährdungen durch Arbeitsumgebungsbedingungen"]
["8.1","Klima (Hitze, Kälte, Zugluft, Luftfeuchtigkeit)","☐"]
["8.2","Beleuchtung, Licht","☐"]
["8.3","Farbe","☐"]
["8.4","Ersticken, Ertrinken","☐"]
["8.5","Unzureichende Flucht- und Verkehrswege","☐"]
["8.6","Unzureichende Sicherheits- /Gesundheitsschutzkennzeichnung","☐"]
["8.7","Unzureichende Bewegungs-, Arbeitsfläche, Pausen-, Sanitärräume","☐"]
[9,"Physische Belastung / Arbeitsschwere"]
["9.1","Schwere dynamische Arbeit (manuelle Handhabung von Lasten)","☐"]
["9.2","Einseitige dynamische Arbeit (häufige Wiederholungen)","☐"]
["9.3","Statische Arbeitshaltung (Zwangshaltungen), Haltearbeit","☐"]
["9.4","Kombination aus schwerer statischer und dynamischer Arbeit","☐"]
[10,"Psychische Belastung / Arbeitsaufgabe und Organisation"]
["10.1","Ungenügend gestaltete Arbeitsaufgabe","☐"]
[null,"(fehlende Abwechslung, Über- oder Unterqualifikation) "]
["10.2","Ungenügend gestaltete Arbeitsorganisation","☐"]
[null,"(Zeitvorgaben, Aufgabenwechsel, Schichtarbeit)"]
["10.3","Ungenügend gestaltete Arbeitsplatzumgebung","☐"]
[null,"(Signalerkennbarkeit, Signalverständlichkeit, Enge)"]
["10.4","Ungenügend gestaltete soziale Bedingungen","☐"]
[null,"(Rückmeldung, Führungsverhalten, Zusammenarbeit, Kommunikation)"]
[11,"Sonstige Gefährdungen"]
["11.1","Menschen (Überfall, Gewalt, etc.)","☐"]
["11.2","Tiere (beißen, stechen, treten)","☐"]
["11.3","Krankheitserreger (übertragen von Menschen oder Tieren)","☐"]
[12,"Multifaktorielle Gefährdungen"]
["12.1","Zusammenwirken verschiedener Gefährdungsfaktoren","☐"]

{"sheet":"Risikobewertung","index":2,"n_rows":57,"n_cols":7,"rows_kept":57,"cut":false,"hidden":false,"merged":[[0,0,0,5]]}
["Risikomatrix nach Nohl"]
["             Schadensausmaß \nEintritts-\nwahrscheinlichkeit","keine Gesundheitlichen Folgen\n","Bagatellfolgen/ geringe Folgen (Die Arbeit kann fortgesetzt werden)","Mäßig schwere Folgen (Arbeitsausfall ohne Dauerschäden)","Schwere Folgen (irreperable Dauerschäden möglich)","Tödliche Folgen \n"]
["nahezu unmöglich","extrem gering [1]","extrem gering [1]","sehr gering [2]","gering bis mittel","mittel [4]",1]
["vorstellbar, aber unwahrscheinlich","extrem gering [1]","sehr gering [2]","gering bis mittel [3]","mittel [4]","hoch [5]",2]
["gelegentlich möglich","sehr gering [2]","gering bis mittel [3]","mittel [4]","hoch [5]","sehr hoch [6]",3]
["gut möglich","sehr gering [2]","mittel [4]","hoch [5]","sehr hoch [6]","extrem hoch [7]",4]
["fast gewiss","sehr gering [2]","mittel [4]","sehr hoch [6]","sehr hoch [6]","extrem hoch [7]",5]
[null,"A","B","C","D","E"]
[]
[]
[]
[]
[]
[]
[]
[]
[]
[]
[]
[]
[]
[]
[]
[]
[]
[]
[]
[]
[]
[]
[null,"Farbcodes:"]
[null,"Ausmaß","Wahrscheinlichkeit","Kombi","Risiko","Farbcode"]
[null,"A",1,{"$f":"B33&C33","v":"A1"},{"$f":"INDEX(Risikobewertung!$B$3:$F$7,MATCH(C33,Risikobewertung!$G$3:$G$7,0),MATCH(B33,Risikobewertung!$B$8:$F$8,0))","v":"extrem gering [1]"},"grün",1]
[null,"A",2,{"$f":"B34&C34","v":"A2"},{"$f":"INDEX(Risikobewertung!$B$3:$F$7,MATCH(C34,Risikobewertung!$G$3:$G$7,0),MATCH(B34,Risikobewertung!$B$8:$F$8,0))","v":"extrem gering [1]"},"grün",1]
[null,"A",3,"A3",{"$f":"INDEX(Risikobewertung!$B$3:$F$7,MATCH(C35,Risikobewertung!$G$3:$G$7,0),MATCH(B35,Risikobewertung!$B$8:$F$8,0))","v":"sehr gering [2]"},"grün",1]
[null,"A",4,"A4",{"$f":"INDEX(Risikobewertung!$B$3:$F$7,MATCH(C36,Risikobewertung!$G$3:$G$7,0),MATCH(B36,Risikobewertung!$B$8:$F$8,0))","v":"sehr gering [2]"},"grün",1]
[null,"A",5,"A5",{"$f":"INDEX(Risikobewertung!$B$3:$F$7,MATCH(C37,Risikobewertung!$G$3:$G$7,0),MATCH(B37,Risikobewertung!$B$8:$F$8,0))","v":"sehr gering [2]"},"grün",1]
[null,"B",1,"B1",{"$f":"INDEX(Risikobewertung!$B$3:$F$7,MATCH(C38,Risikobewertung!$G$3:$G$7,0),MATCH(B38,Risikobewertung!$B$8:$F$8,0))","v":"extrem gering [1]"},"grün",1]
[null,"B",2,"B2",{"$f":"INDEX(Risikobewertung!$B$3:$F$7,MATCH(C39,Risikobewertung!$G$3:$G$7,0),MATCH(B39,Risikobewertung!$B$8:$F$8,0))","v":"sehr gering [2]"},"grün",1]
[null,"B",3,"B3",{"$f":"INDEX(Risikobewertung!$B$3:$F$7,MATCH(C40,Risikobewertung!$G$3:$G$7,0),MATCH(B40,Risikobewertung!$B$8:$F$8,0))","v":"gering bis mittel [3]"},"gelb",2]
[null,"B",4,"B4",{"$f":"INDEX(Risikobewertung!$B$3:$F$7,MATCH(C41,Risikobewertung!$G$3:$G$7,0),MATCH(B41,Risikobewertung!$B$8:$F$8,0))","v":"mittel [4]"},"gelb",2]
[null,"B",5,"B5",{"$f":"INDEX(Risikobewertung!$B$3:$F$7,MATCH(C42,Risikobewertung!$G$3:$G$7,0),MATCH(B42,Risikobewertung!$B$8:$F$8,0))","v":"mittel [4]"},"gelb",2]
[null,"C",1,"C1",{"$f":"INDEX(Risikobewertung!$B$3:$F$7,MATCH(C43,Risikobewertung!$G$3:$G$7,0),MATCH(B43,Risikobewertung!$B$8:$F$8,0))","v":"sehr gering [2]"},"grün",1]
[null,"C",2,"C2",{"$f":"INDEX(Risikobewertung!$B$3:$F$7,MATCH(C44,Risikobewertung!$G$3:$G$7,0),MATCH(B44,Risikobewertung!$B$8:$F$8,0))","v":"gering bis mittel [3]"},"gelb",2]
[null,"C",3,"C3",{"$f":"INDEX(Risikobewertung!$B$3:$F$7,MATCH(C45,Risikobewertung!$G$3:$G$7,0),MATCH(B45,Risikobewertung!$B$8:$F$8,0))","v":"mittel [4]"},"gelb",2]
[null,"C",4,"C4",{"$f":"INDEX(Risikobewertung!$B$3:$F$7,MATCH(C46,Risikobewertung!$G$3:$G$7,0),MATCH(B46,Risikobewertung!$B$8:$F$8,0))","v":"hoch [5]"},"rot",3]
[null,"C",5,"C5",{"$f":"INDEX(Risikobewertung!$B$3:$F$7,MATCH(C47,Risikobewertung!$G$3:$G$7,0),MATCH(B47,Risikobewertung!$B$8:$F$8,0))","v":"sehr hoch [6]"},"rot",3]
[null,"D",1,"D1",{"$f":"INDEX(Risikobewertung!$B$3:$F$7,MATCH(C48,Risikobewertung!$G$3:$G$7,0),MATCH(B48,Risikobewertung!$B$8:$F$8,0))","v":"gering bis mittel"},"gelb",2]
[null,"D",2,"D2",{"$f":"INDEX(Risikobewertung!$B$3:$F$7,MATCH(C49,Risikobewertung!$G$3:$G$7,0),MATCH(B49,Risikobewertung!$B$8:$F$8,0))","v":"mittel [4]"},"gelb",2]
[null,"D",3,"D3",{"$f":"INDEX(Risikobewertung!$B$3:$F$7,MATCH(C50,Risikobewertung!$G$3:$G$7,0),MATCH(B50,Risikobewertung!$B$8:$F$8,0))","v":"hoch [5]"},"rot",3]
[null,"D",4,"D4",{"$f":"INDEX(Risikobewertung!$B$3:$F$7,MATCH(C51,Risikobewertung!$G$3:$G$7,0),MATCH(B51,Risikobewertung!$B$8:$F$8,0))","v":"sehr hoch [6]"},"rot",3]
[null,"D",5,"D5",{"$f":"INDEX(Risikobewertung!$B$3:$F$7,MATCH(C52,Risikobewertung!$G$3:$G$7,0),MATCH(B52,Risikobewertung!$B$8:$F$8,0))","v":"sehr hoch [6]"},"rot",3]
[null,"E",1,"E1",{"$f":"INDEX(Risikobewertung!$B$3:$F$7,MATCH(C53,Risikobewertung!$G$3:$G$7,0),MATCH(B53,Risikobewertung!$B$8:$F$8,0))","v":"mittel [4]"},"gelb",2]
[null,"E",2,"E2",{"$f":"INDEX(Risikobewertung!$B$3:$F$7,MATCH(C54,Risikobewertung!$G$3:$G$7,0),MATCH(B54,Risikobewertung!$B$8:$F$8,0))","v":"hoch [5]"},"rot",3]
[null,"E",3,"E3",{"$f":"INDEX(Risikobewertung!$B$3:$F$7,MATCH(C55,Risikobewertung!$G$3:$G$7,0),MATCH(B55,Risikobewertung!$B$8:$F$8,0))","v":"sehr hoch [6]"},"rot",3]
[null,"E",4,"E4",{"$f":"INDEX(Risikobewertung!$B$3:$F$7,MATCH(C56,Risikobewertung!$G$3:$G$7,0),MATCH(B56,Risikobewertung!$B$8:$F$8,0))","v":"extrem hoch [7]"},"rot",3]
[null,"E",5,"E5",{"$f":"INDEX(Risikobewertung!$B$3:$F$7,MATCH(C57,Risikobewertung!$G$3:$G$7,0),MATCH(B57,Risikobewertung!$B$8:$F$8,0))","v":"extrem hoch [7]"},"rot",3]